bitfinex/quotes_SOLUSD_20250912
["timestamp","ask_amount","ask_price","bid_price","bid_amount"]
[1757702509346,0.66,240.74,240.7,0.03]
[1757702509516,0.66,240.72,240.7,0.03]
[1757702509929,4.15383899,240.75,240.7,0.03]
[1757702510139,0.66,240.74,240.7,0.03]
[1757702510334,26.66,240.74,240.7,0.03]
[1757702510641,4.81411165,240.73,240.7,0.03]
[1757702511156,26.0,240.74,240.7,0.03]
[1757702511360,0.66,240.72,240.7,0.03]
[1757702511853,0.66,240.71,240.7,0.03]
[1757702512026,26.0,240.74,240.7,0.03]
[1757702512220,0.66,240.72,240.7,0.03]
[1757702512646,0.66,240.74,240.7,0.03]
[1757702513217,0.66,240.73,240.7,0.03]
[1757702513832,0.06,240.8,240.71,0.71]
[1757702514026,0.06,240.83,240.72,13.59559401]
[1757702514225,0.06,240.83,240.73,0.71]
[1757702514447,0.06,240.83,240.74,32.36]
[1757702514645,0.06,240.83,240.75,0.71]
[1757702515843,0.7,240.82,240.75,32.34]
[1757702516042,4.35450147,240.83,240.75,32.34]
[1757702516043,0.7,240.81,240.75,32.34]
[1757702517844,0.7,240.81,240.75,33.07]
[1757702518234,7.13447898,240.83,240.75,33.07]
[1757702518435,7.83447898,240.83,240.75,33.07]
[1757702519327,2.78000454,240.82,240.75,33.07]
[1757702519543,2.78000454,240.81,240.75,33.07]
[1757702519740,3.48000454,240.82,240.76,32.34]
[1757702519942,3.48000454,240.81,240.76,32.34]
[1757702520248,2.78000454,240.8,240.77,0.71]
[1757702520543,0.7,240.81,240.75,0.71]
[1757702520750,0.20216157,240.83,240.76,32.32]
[1757702521052,2.79260753,240.82,240.77,0.71]
[1757702521250,2.79260753,240.81,240.77,0.71]
[1757702521553,2.79323004,240.8,240.77,32.32]
[1757702521733,0.7,240.81,240.75,0.71]
[1757702521938,2.79323045,240.8,240.76,32.32]
[1757702522230,2.79323045,240.79,240.76,32.32]
[1757702522446,0.7,240.8,240.76,32.32]
[1757702522655,2.7934188,240.79,240.76,32.32]
[1757702522859,2.79334012,240.79,240.76,32.32]
[1757702523653,0.7,240.78,240.75,32.32]
[1757702523868,0.7,240.78,240.73,0.71]
[1757702524032,2.79361355,240.8,240.7,0.03]
[1757702524033,0.7,240.77,240.7,0.03]
[1757702524360,26.7,240.77,240.71,32.32]
[1757702524526,26.7,240.77,240.71,33.03]
[1757702525137,26.0,240.77,240.71,33.03]
[1757702525752,28.79449423,240.78,240.71,33.03]
[1757702526059,26.84216157,240.78,240.77,0.03]
[1757702526266,29.63665437,240.78,240.77,0.03]
[1757702527353,28.93665437,240.78,240.77,0.03]
[1757702527555,26.06,240.81,240.77,0.03]
[1757702527749,28.79444971,240.8,240.77,0.74]
[1757702528369,2.79444971,240.8,240.77,0.74]
[1757702528564,3.49444971,240.8,240.77,0.03]
[1757702530168,0.84216157,240.79,240.77,0.03]
[1757702530362,2.79428523,240.78,240.77,0.03]
[1757702530878,26.0,240.8,240.77,0.03]
[1757702531181,28.79425479,240.8,240.77,0.03]
[1757702532868,0.06,240.81,240.78,0.71]
[1757702533061,0.06,240.81,240.79,0.71]
[1757702533259,0.06,240.81,240.77,0.03]
[1757702533573,2.85403541,240.81,240.77,0.74]
[1757702533766,0.06,240.81,240.78,0.71]
[1757702534074,2.85403541,240.81,240.78,0.71]
[1757702534277,0.06,240.81,240.78,0.71]
[1757702534646,0.06,240.81,240.77,0.03]
[1757702534845,0.06,240.81,240.77,0.74]
[1757702535052,0.14216157,240.79,240.77,0.03]
[1757702535275,26.7,240.8,240.77,0.03]
[1757702536456,29.49386953,240.8,240.77,0.03]
[1757702537642,26.06,240.81,240.77,0.03]
[1757702537848,0.06,240.81,240.78,0.71]
[1757702538050,0.06,240.81,240.79,0.71]
[1757702538249,0.06,240.81,240.77,0.74]
[1757702538456,0.06,240.81,240.78,0.71]
[1757702539769,0.06,240.81,240.78,4.86316003]
[1757702540271,0.06,240.81,240.79,0.71]
[1757702540668,0.06,240.81,240.8,0.71]
[1757702541066,0.06,240.81,240.78,32.32]
[1757702541266,0.06,240.81,240.78,33.03]
[1757702541467,0.06,240.81,240.78,32.32]
[1757702541769,0.06,240.81,240.79,0.71]
[1757702543560,0.06,240.81,240.8,0.71]
[1757702545655,0.06,240.81,240.8,0.9606]
[1757702546065,0.06,240.81,240.8,5.05342392]
[1757702546678,0.06,240.81,240.8,0.9006]
[1757702548059,0.06,240.81,240.8,5.05342392]
[1757702549493,0.06,240.83,240.8,5.05342392]
[1757702549668,0.06,240.83,240.81,0.65]
[1757702550166,0.06,240.83,240.82,0.65]
[1757702550786,0.06,240.83,240.82,32.26]
[1757702551783,0.06,240.83,240.8,0.2506]
[1757702552083,0.06,240.83,240.82,32.26]
[1757702552987,0.06,240.83,240.8,0.9006]
[1757702553189,0.06,240.83,240.81,32.24]
[1757702553570,0.06,240.83,240.82,32.24]
[1757702554595,0.06,240.83,240.82,32.89]
[1757702554967,0.06,240.83,240.82,32.24]
[1757702555274,0.06,240.83,240.82,32.89]
[1757702557285,0.78,240.83,240.8,0.2506]
[1757702557471,0.78,240.83,240.8,32.4706]
[1757702557789,0.72,240.82,240.8,32.4706]
[1757702558091,0.06,240.83,240.8,32.4706]
[1757702559491,0.78,240.83,240.8,32.4706]
[1757702559882,0.06,240.83,240.8,32.4706]
[1757702560296,0.06,240.83,240.8,33.1206]
[1757702562267,0.06,240.83,240.81,32.22]
[1757702562478,0.06,240.83,240.81,32.87]
[1757702563093,0.06,240.83,240.81,32.22]
[1757702563470,0.06,240.83,240.8,0.2806]
[1757702563690,0.06,240.83,240.81,32.22]
[1757702564676,0.78,240.83,240.81,32.22]
[1757702564902,0.06,240.83,240.81,32.22]
[1757702565296,0.72,240.82,240.8,0.03]
[1757702565476,0.72,240.81,240.8,0.03]
[1757702568575,0.72,240.81,240.8,0.2806]
[1757702570002,0.06,240.83,240.8,0.2806]
[1757702570315,0.06,240.83,240.81,32.9]
[1757702571191,0.06,240.83,240.8,0.2806]
[1757702571510,0.06,240.83,240.81,32.9]
[1757702572020,0.06,240.83,240.81,32.22]
[1757702573490,0.06,240.83,240.8,0.2806]
[1757702573706,0.06,240.83,240.81,32.22]
[1757702577720,0.06,240.83,240.8,0.2806]
[1757702578240,0.06,240.83,240.8,0.9506]
[1757702578904,0.06,240.83,240.8,0.2806]
[1757702580819,0.06,240.83,240.8,0.9506]
[1757702581235,0.06,240.83,240.8,0.2806]
[1757702581458,0.06,240.83,240.81,0.67]
[1757702581602,0.06,240.83,240.82,0.67]
[1757702582304,0.06,240.83,240.8,0.9506]
[1757702582700,0.06,240.83,240.8,0.2806]
[1757702582910,0.06,240.83,240.8,0.9506]
[1757702583107,0.06,240.83,240.81,0.67]
[1757702584301,0.06,240.83,240.82,0.67]
[1757702585711,0.06,240.83,240.82,4.82247902]
[1757702586209,0.06,240.84,240.82,4.82247902]
[1757702586411,0.06,240.84,240.83,0.67]
[1757702587906,0.06,240.84,240.83,4.8223066]
[1757702588129,0.06,240.86,240.83,4.8223066]
[1757702588312,0.06,240.86,240.84,32.89]
[1757702588712,0.06,240.86,240.85,0.67]
[1757702589429,0.06,240.86,240.85,4.8219618]
[1757702589610,0.1,240.89,240.85,4.8219618]
[1757702589816,0.1,240.89,240.86,0.67]
[1757702590236,0.1,240.89,240.87,0.67]
[1757702590611,0.1,240.89,240.87,32.89]
[1757702592849,0.1,240.89,240.87,37.04161705]
[1757702593044,0.1,240.89,240.87,32.89]
[1757702593254,0.1,240.89,240.87,32.22]
[1757702594318,0.1,240.89,240.85,0.2506]
[1757702594516,0.77,240.88,240.86,32.22]
[1757702595438,0.71,240.87,240.85,0.2506]
[1757702596639,0.71,240.86,240.85,0.2506]
[1757702599442,0.77,240.86,240.85,0.2506]
[1757702600021,0.91216157,240.86,240.85,0.2506]
[1757702600234,31.06395099,240.86,240.85,0.2506]
[1757702600431,33.85888515,240.86,240.85,0.2506]
[1757702600634,47.45447916,240.86,240.85,0.2506]
[1757702600847,43.30268974,240.86,240.85,0.2506]
[1757702601753,47.45447916,240.86,240.85,0.2506]
[1757702602144,50.04679842,240.86,240.85,0.2506]
[1757702602322,32.29941499,240.86,240.85,0.2506]
[1757702602627,29.70709573,240.86,240.85,0.2506]
[1757702603337,3.56493416,240.86,240.85,0.2506]
[1757702603667,5.06395099,240.86,240.85,0.2506]
[1757702603821,24.04679842,240.86,240.85,0.2506]
[1757702604443,21.45447916,240.86,240.85,0.2506]
[1757702605031,47.45447916,240.86,240.85,0.2506]
[1757702605246,50.04679842,240.86,240.85,0.2506]
[1757702605755,47.45447916,240.86,240.85,0.2506]
[1757702605927,53.53103748,240.86,240.85,0.2506]
[1757702606424,50.04679842,240.86,240.85,0.2506]
[1757702606625,21.45447916,240.86,240.85,0.2506]
[1757702607026,47.45447916,240.86,240.85,0.2506]
[1757702607230,17.30268974,240.86,240.85,0.2506]
[1757702607435,43.30268974,240.86,240.85,0.2506]
[1757702609240,19.895009,240.86,240.85,0.2506]
[1757702609840,43.30268974,240.86,240.85,0.2506]
[1757702610064,45.895009,240.86,240.85,0.2506]
[1757702610251,19.895009,240.86,240.85,0.2506]
[1757702610760,24.04679842,240.86,240.85,0.2506]
[1757702610961,47.45447916,240.86,240.85,0.2506]
[1757702611163,21.45447916,240.86,240.85,0.2506]
[1757702611480,53.67447916,240.86,240.85,0.2506]
[1757702612164,21.45447916,240.86,240.85,0.2506]
[1757702612547,18.659545,240.86,240.85,0.2506]
[1757702612846,21.45447916,240.86,240.85,0.2506]
[1757702615350,24.04679842,240.86,240.85,0.2506]
[1757702616659,23.11633338,240.86,240.85,0.2506]
[1757702616976,25.70865264,240.86,240.85,0.2506]
[1757702618065,23.11633338,240.86,240.85,0.2506]
[1757702618874,2.85493416,240.86,240.85,0.9706]
[1757702619172,0.06,240.86,240.85,0.9706]
[1757702619483,0.06,240.86,240.85,0.2506]
[1757702619658,26.06,240.86,240.85,0.9706]
[1757702619987,26.06,240.86,240.85,1.0006]
[1757702620156,0.06,240.86,240.85,1.0006]
[1757702622884,0.06,240.86,240.85,0.2806]
[1757702622885,4.35395099,240.86,240.85,0.2806]
[1757702623065,5.02395099,240.86,240.85,0.2806]
[1757702623458,37.24395099,240.86,240.85,0.2806]
[1757702623671,53.63447916,240.86,240.85,0.2806]
[1757702625684,56.22679842,240.86,240.85,0.2806]
[1757702626858,53.63447916,240.86,240.85,0.2806]
[1757702627978,78.96447916,240.86,240.85,0.2806]
[1757702630076,65.36888515,240.86,240.85,0.9906]
[1757702631055,39.36888515,240.86,240.85,0.9906]
[1757702631256,7.14888515,240.86,240.85,0.9906]
[1757702631490,36.57395099,240.86,240.85,0.9906]
[1757702631681,39.36888515,240.86,240.85,0.9906]
[1757702631991,2.85493416,240.86,240.85,0.9906]
[1757702632195,0.06,240.86,240.85,0.2806]
[1757702632363,7.00672358,240.86,240.85,0.2806]
[1757702632559,20.74447916,240.86,240.85,0.2806]
[1757702632785,21.39447916,240.86,240.85,0.2806]
[1757702636284,20.74447916,240.86,240.85,0.2806]
[1757702637674,23.33679842,240.86,240.85,0.2806]
[1757702638177,49.33679842,240.86,240.85,0.2806]
[1757702640406,51.45672725,240.86,240.85,0.2806]
[1757702640601,50.79672725,240.86,240.85,0.2806]
[1757702640772,51.45672725,240.86,240.85,0.2806]
[1757702641201,50.79672725,240.86,240.85,0.2806]
[1757702641418,54.94096631,240.86,240.85,0.2806]
[1757702642313,52.14603215,240.86,240.85,0.2806]
[1757702643311,39.59559401,240.83,240.82,0.03]
[1757702643609,17.79000367,240.81,240.8,1e-08]
[1757702643791,50.01000367,240.81,240.8,1e-08]
[1757702643999,18.45000367,240.81,240.8,1e-08]
[1757702644306,52.33234133,240.81,240.8,1e-08]
[1757702644783,56.48499279,240.81,240.8,1e-08]
[1757702647585,24.26499279,240.81,240.8,1e-08]
[1757702647792,56.48499279,240.81,240.8,1e-08]
[1757702650296,49.96824547,240.81,240.8,0.68000001]
[1757702650585,54.02049356,240.81,240.8,1.07290001]
[1757702651083,54.16265513,240.81,240.8,1.07290001]
[1757702651387,13.59559401,240.79,240.78,0.03]
[1757702651589,39.59559401,240.76,240.69,0.68]
[1757702651804,76.17000367,240.76,240.69,0.68]
[1757702652002,76.83000367,240.76,240.69,0.68]
[1757702652910,78.49261771,240.76,240.69,0.68]
[1757702653219,20.14216157,240.75,240.61,0.1]
[1757702653508,4.05224809,240.64,240.61,0.1]
[1757702653693,0.14216157,240.65,240.61,0.1]
[1757702653881,32.60216157,240.65,240.61,0.1]
[1757702654084,32.60216157,240.65,240.62,0.68]
[1757702655306,4.1555851,240.64,240.61,0.1]
[1757702655511,0.14216157,240.63,240.62,0.68]
[1757702655689,36.65440966,240.63,240.61,0.78]
[1757702655890,4.19440966,240.62,240.61,0.1]
[1757702656090,4.19440966,240.62,240.61,0.78]
[1757702656424,0.14216157,240.62,240.61,0.78]
[1757702657509,4.29809208,240.62,240.61,0.78]
[1757702658015,34.75842558,240.62,240.61,0.1]
[1757702658398,47.23425366,240.62,240.61,0.1]
[1757702658595,34.75842558,240.62,240.61,0.13]
[1757702658990,36.42186933,240.62,240.61,0.13]
[1757702659401,44.11402723,240.62,240.61,0.81]
[1757702659701,56.70617749,240.62,240.61,0.13]
[1757702660012,67.23842558,240.62,240.61,0.13]
[1757702661994,63.18617749,240.62,240.61,0.13]
[1757702662291,48.93058348,240.62,240.61,0.13]
[1757702662503,74.93058348,240.62,240.61,0.13]
[1757702662708,66.57842558,240.62,240.61,0.13]
[1757702662915,52.98283157,240.62,240.61,0.13]
[1757702663213,66.57842558,240.62,240.61,0.13]
[1757702663719,62.52617749,240.62,240.61,0.13]
[1757702663902,42.45058348,240.62,240.61,0.83]
[1757702664218,26.0,240.62,240.61,0.83]
[1757702664601,26.14216157,240.62,240.61,0.83]
[1757702664804,0.14216157,240.63,240.61,0.83]
[1757702665012,0.14216157,240.63,240.62,0.7]
[1757702665516,36.79800322,240.63,240.61,0.13]
[1757702665715,62.79800322,240.63,240.61,0.83]
[1757702666021,62.79800322,240.63,240.61,0.13]
[1757702667703,18.45000367,240.62,240.61,0.13]
[1757702668097,14.39775558,240.62,240.61,0.13]
[1757702668302,18.45000367,240.62,240.61,0.13]
[1757702668610,14.39775558,240.62,240.61,0.13]
[1757702668810,18.45000367,240.62,240.61,0.13]
[1757702669009,22.60593418,240.62,240.61,0.13]
[1757702669201,18.55368609,240.62,240.61,0.13]
[1757702669400,22.60593418,240.62,240.61,0.13]
[1757702669810,30.19440966,240.61,240.6,0.1]
[1757702670006,63.35440966,240.61,240.6,0.1]
[1757702670609,76.95000367,240.61,240.6,0.1]
[1757702670815,76.95000367,240.61,240.58,0.03]
[1757702671012,17.79000367,240.59,240.58,0.03]
[1757702671218,50.29000367,240.59,240.58,0.03]
[1757702671417,50.95000367,240.59,240.58,0.03]
[1757702672014,50.29000367,240.59,240.58,0.03]
[1757702672415,50.95000367,240.59,240.58,0.03]
[1757702672629,53.71715926,240.59,240.58,0.03]
[1757702673123,53.8213599,240.59,240.58,0.03]
[1757702673309,57.87360799,240.59,240.58,0.03]
[1757702673827,53.8213599,240.59,240.58,0.03]
[1757702674029,57.87360799,240.59,240.58,0.03]
[1757702675330,57.21360799,240.59,240.58,0.03]
[1757702676126,20.6613599,240.59,240.58,0.03]
[1757702676317,54.4464524,240.59,240.58,0.73]
[1757702677025,54.4464524,240.59,240.58,0.03]
[1757702677613,55.1064524,240.59,240.58,0.03]
[1757702677913,54.4464524,240.59,240.58,0.03]
[1757702679435,54.4464524,240.59,240.58,0.73]
[1757702679621,54.4464524,240.59,240.58,0.03]
[1757702679814,57.21403696,240.59,240.58,0.03]
[1757702681720,54.4464524,240.59,240.58,0.03]
[1757702682748,50.39420431,240.59,240.58,0.73]
[1757702682915,54.4464524,240.59,240.58,0.73]
[1757702683218,54.4464524,240.59,240.58,0.03]
[1757702683830,57.21713553,240.59,240.58,0.03]
[1757702684040,39.73775558,240.56,240.55,0.03]
[1757702684229,72.37775558,240.56,240.55,0.73]
[1757702684814,72.37775558,240.56,240.55,0.03]
[1757702685010,76.43000367,240.56,240.55,0.03]
[1757702685209,80.58697074,240.56,240.55,0.73]
[1757702685638,80.58697074,240.56,240.55,0.03]
[1757702686341,83.3591194,240.56,240.55,0.03]
[1757702686519,84.0691194,240.56,240.55,0.03]
[1757702689631,80.01687131,240.56,240.55,0.03]
[1757702689842,84.0691194,240.56,240.55,0.03]
[1757702690443,83.3591194,240.56,240.55,0.03]
[1757702690626,84.0691194,240.56,240.55,0.03]
[1757702692523,50.7191194,240.56,240.55,0.03]
[1757702692741,50.7191194,240.56,240.55,0.71]
[1757702692936,83.15695783,240.56,240.55,0.71]
[1757702693121,83.2991194,240.56,240.55,0.71]
[1757702693321,83.15695783,240.56,240.55,0.71]
[1757702693723,50.7191194,240.56,240.55,0.71]
[1757702693946,83.2991194,240.56,240.55,0.71]
[1757702694248,83.2991194,240.56,240.55,0.03]
[1757702694651,83.2991194,240.56,240.55,0.73]
[1757702695244,79.24687131,240.56,240.55,0.73]
[1757702695439,83.2991194,240.56,240.55,0.73]
[1757702696047,43.70352539,240.56,240.55,0.73]
[1757702696343,43.62136382,240.56,240.55,0.73]
[1757702696525,57.3391194,240.56,240.55,0.03]
[1757702696935,58.0091194,240.56,240.55,0.03]
[1757702698328,61.49710196,240.56,240.55,0.03]
[1757702700532,56.5576892,240.56,240.55,0.03]
[1757702704150,60.0497742,240.56,240.55,0.03]
[1757702706260,56.5576892,240.56,240.55,0.03]
[1757702707367,60.0497742,240.56,240.55,0.03]
[1757702708338,43.89524113,240.53,240.52,0.03]
[1757702708559,85.26126456,240.53,240.52,0.03]
[1757702708765,85.93126456,240.53,240.52,0.03]
[1757702709173,82.43820768,240.53,240.52,0.03]
[1757702709354,85.93126456,240.53,240.52,0.03]
[1757702710464,96.32497844,240.53,240.47,0.7]
[1757702710635,28.60081789,240.48,240.47,0.7]
[1757702710841,64.03512812,240.48,240.47,0.7]
[1757702712258,13.73775558,240.47,240.34,26.0]
[1757702712457,53.16860007,240.46,240.45,0.7]
[1757702712648,0.14216157,240.45,240.42,0.7]
[1757702712849,2.91431023,240.44,240.43,0.7]
[1757702713074,35.43431023,240.44,240.43,0.7]
[1757702713247,2.60081789,240.44,240.32,26.0]
[1757702713441,42.40866653,240.46,240.42,0.7]
[1757702713644,2.60081789,240.43,240.42,0.7]
[1757702714455,6.76003263,240.43,240.42,0.7]
[1757702714954,6.76003263,240.43,240.4,0.7]
[1757702715158,6.76003263,240.43,240.41,0.8]
[1757702715466,4.15902459,240.45,240.42,0.7]
[1757702715642,30.15870328,240.46,240.42,0.7]
[1757702716342,2.60081789,240.43,240.42,0.7]
[1757702716551,6.76003263,240.43,240.42,0.7]
[1757702716953,6.76003263,240.43,240.41,0.1]
[1757702717165,6.76003263,240.43,240.41,0.8]
[1757702717362,2.60081789,240.42,240.41,0.8]
[1757702717551,6.76003263,240.43,240.42,0.72]
[1757702718360,4.15921474,240.43,240.42,0.72]
[1757702718565,6.76003263,240.43,240.42,0.72]
[1757702718955,6.76003263,240.43,240.41,0.1]
[1757702719264,2.60081789,240.42,240.41,0.1]
[1757702719556,2.60081789,240.42,240.41,0.82]
[1757702719767,4.15921474,240.43,240.41,0.82]
[1757702720340,4.15921474,240.43,240.41,0.1]
[1757702720541,30.15921474,240.43,240.42,0.72]
[1757702722853,30.15921474,240.43,240.41,0.1]
[1757702723061,32.76003263,240.43,240.41,0.82]
[1757702723366,32.76003263,240.43,240.41,0.1]
[1757702723771,32.76003263,240.43,240.41,0.82]
[1757702723969,2.60081789,240.42,240.41,0.1]
[1757702724367,30.15921474,240.43,240.41,0.1]
[1757702724569,2.60081789,240.42,240.41,0.1]
[1757702725859,30.15921474,240.43,240.41,0.1]
[1757702726061,2.60081789,240.42,240.41,0.1]
[1757702727673,4.15938773,240.42,240.41,0.77]
[1757702727861,26.0,240.43,240.41,0.77]
[1757702728768,26.0,240.43,240.42,0.67]
[1757702729370,30.15921922,240.43,240.41,0.1]
[1757702729677,4.15921922,240.43,240.41,0.77]
[1757702730483,26.0,240.44,240.42,0.67]
[1757702730978,26.0,240.43,240.42,0.67]
[1757702733288,4.15921474,240.43,240.42,0.67]
[1757702733985,26.0,240.43,240.42,0.67]
[1757702734370,26.0,240.46,240.42,0.67]
[1757702734575,26.0,240.46,240.43,0.67]
[1757702734776,28.78984393,240.46,240.43,0.67]
[1757702735494,28.84984393,240.46,240.43,0.67]
[1757702735883,4.15886878,240.45,240.43,0.67]
[1757702736494,4.15886878,240.45,240.42,0.03]
[1757702737083,9.54975645,240.45,240.42,0.03]
[1757702737283,0.67,240.44,240.42,0.03]
[1757702738495,4.15921474,240.43,240.42,0.03]
[1757702738998,4.15906421,240.44,240.42,0.7]
[1757702740273,4.15906421,240.44,240.43,0.67]
[1757702740996,2.79006978,240.45,240.43,0.67]
[1757702741192,4.15887037,240.45,240.43,0.67]
[1757702741701,4.15887037,240.45,240.42,0.03]
[1757702741993,4.15887037,240.45,240.42,0.7]
[1757702742203,4.15887037,240.45,240.43,0.67]
[1757702742386,4.15887037,240.45,240.42,0.03]
[1757702742800,4.15887037,240.45,240.42,0.7]
[1757702743588,4.82887037,240.45,240.42,0.03]
[1757702743993,0.67,240.44,240.42,0.03]
[1757702744594,4.15921474,240.43,240.42,0.03]
[1757702745105,4.82921474,240.43,240.42,0.03]
[1757702745294,4.15921474,240.43,240.42,0.03]
[1757702745698,4.15921474,240.43,240.42,0.7]
[1757702746586,4.15906315,240.44,240.42,0.7]
[1757702747200,6.94894241,240.45,240.43,0.67]
[1757702747397,6.94894241,240.45,240.42,0.03]
[1757702747788,6.94894241,240.45,240.42,0.72]
[1757702748015,2.79006978,240.45,240.43,0.69]
[1757702748312,6.94900412,240.45,240.43,0.69]
[1757702748520,6.94900412,240.45,240.42,0.03]
[1757702748709,6.94900412,240.45,240.42,0.72]
[1757702749126,2.79006978,240.44,240.42,0.72]
[1757702749301,2.79006978,240.44,240.42,0.03]
[1757702751211,2.79006978,240.43,240.42,0.03]
[1757702751421,2.79006978,240.44,240.42,0.03]
[1757702751605,2.79006978,240.43,240.42,0.03]
[1757702751804,2.79006978,240.44,240.42,0.03]
[1757702752020,2.79006978,240.43,240.42,0.03]
[1757702753003,2.79006978,240.45,240.42,0.72]
[1757702753227,2.79006978,240.44,240.42,0.03]
[1757702753531,0.06,240.46,240.43,0.69]
[1757702753706,2.79931693,240.45,240.43,0.69]
[1757702754025,2.79931693,240.44,240.42,0.03]
[1757702754243,2.79931693,240.43,240.42,0.74]
[1757702754401,2.79931693,240.43,240.41,0.1]
[1757702754602,2.79931693,240.42,240.41,0.1]
[1757702754825,6.95820427,240.45,240.42,0.03]
[1757702755021,2.79931693,240.44,240.42,0.03]
[1757702755228,2.79931693,240.43,240.42,0.03]
[1757702760830,2.79931693,240.44,240.42,0.74]
[1757702761032,0.06,240.46,240.43,0.71]
[1757702761237,2.80130295,240.45,240.43,0.71]
[1757702761524,0.06,240.46,240.43,0.71]
[1757702763721,2.85986139,240.46,240.43,0.71]
[1757702764037,0.06,240.46,240.43,0.71]
[1757702764407,2.85986139,240.46,240.43,0.71]
[1757702764613,0.06,240.46,240.43,0.71]
[1757702765037,2.85986139,240.46,240.43,0.71]
[1757702765234,0.06,240.46,240.43,0.71]
[1757702765628,2.85986139,240.46,240.43,33.05]
[1757702765829,0.06,240.46,240.43,33.05]
[1757702766030,2.85986139,240.46,240.42,0.03]
[1757702766231,2.85986139,240.46,240.43,32.34]
[1757702766424,0.06,240.46,240.43,32.34]
[1757702766621,2.85986139,240.46,240.42,0.74]
[1757702766915,2.85986139,240.46,240.43,32.34]
[1757702766916,0.06,240.46,240.43,32.34]
[1757702768129,2.85986139,240.46,240.43,32.34]
[1757702768338,0.06,240.46,240.43,32.34]
[1757702768519,2.85986139,240.46,240.43,32.34]
[1757702769228,0.06,240.46,240.43,33.05]
[1757702771667,2.85986139,240.46,240.43,33.05]
[1757702771852,0.06,240.46,240.43,33.05]
[1757702772052,2.85986139,240.46,240.43,33.05]
[1757702772238,0.06,240.46,240.43,33.05]
[1757702772443,2.85986139,240.46,240.43,33.05]
[1757702772639,0.06,240.46,240.43,33.05]
[1757702772826,2.85986139,240.46,240.43,33.05]
[1757702773030,0.06,240.46,240.43,33.05]
[1757702773253,2.85986139,240.46,240.43,33.05]
[1757702773563,0.06,240.46,240.43,33.05]
[1757702773738,2.85986139,240.46,240.43,33.05]
[1757702773938,0.06,240.46,240.43,33.05]
[1757702774240,2.85986139,240.46,240.43,33.05]
[1757702774455,0.06,240.46,240.43,33.05]
[1757702774657,2.85986139,240.46,240.43,33.05]
[1757702774831,0.06,240.46,240.43,33.05]
[1757702775032,2.85986139,240.46,240.43,33.05]
[1757702775355,0.06,240.46,240.44,0.71]
[1757702776772,0.06,240.46,240.45,33.05]
[1757702777459,0.06,240.46,240.45,32.34]
[1757702781625,0.06,240.46,240.45,33.05]
[1757702782231,0.06,240.46,240.45,46.64559401]
[1757702782432,0.06,240.46,240.45,50.80446279]
[1757702782642,0.06,240.46,240.45,79.60432418]
[1757702782932,0.06,240.46,240.45,75.4454554]
[1757702783745,0.06,240.46,240.45,43.1054554]
[1757702783962,0.06,240.46,240.45,75.4254554]
[1757702789258,0.06,240.46,240.45,79.58432418]
[1757702790156,0.06,240.49,240.45,53.72648575]
[1757702790351,0.06,240.56,240.5,13.59559401]
[1757702790529,0.06,240.56,240.49,13.59559401]